fUST/lending_fUST_20250302
["ID","MTS","AMOUNT","RATE_DAILY","PERIOD"]
[355015086,1740868254949,-643.55,0.00024931,2]
[355015087,1740868254959,-4723.24,0.00024931,2]
[355015088,1740868254969,-500.0,0.00024931,2]
[355015089,1740868254979,-500.0,0.00024931,2]
[355015090,1740868254988,-725.95,0.00024931,2]
[355015091,1740868254998,-984.24,0.00024931,2]
[355015092,1740868255008,-500.0,0.00024931,2]
[355015093,1740868255017,-500.0,0.00024931,2]
[355015094,1740868255027,-1317.17,0.00024931,2]
[355015095,1740868255036,-955.51,0.00024931,2]
[355015096,1740868255046,-500.0,0.00024931,2]
[355015097,1740868255055,-160.0,0.00024931,7]
[355015098,1740868255064,-923.22,0.00024931,2]
[355015099,1740868255075,-500.0,0.00024931,2]
[355015100,1740868255085,-500.0,0.00024931,2]
[355015101,1740868255095,-4129.66,0.00024931,2]
[355015102,1740868255104,-500.0,0.00024931,2]
[355015103,1740868255114,-1831.55,0.00024931,2]
[355015104,1740868255123,-500.0,0.00024931,2]
[355015105,1740868255133,-500.0,0.00024931,2]
[355015106,1740868255144,-500.0,0.00024931,2]
[355015107,1740868255154,-500.0,0.00024931,2]
[355015108,1740868255163,-2471.51,0.00024931,2]
[355015109,1740868255172,-500.0,0.00024931,2]
[355015110,1740868255182,-517.33893347,0.00024931,2]
[355015111,1740868255191,-2561.17,0.00024931,2]
[355015112,1740868255202,-1598.73,0.00024931,2]
[355015113,1740868255212,-500.0,0.00024931,2]
[355015114,1740868255222,-503.38725626,0.00024931,2]
[355015115,1740868255232,-500.0,0.00024931,2]
[355015116,1740868255241,-376.988901,0.00024931,7]
[355015117,1740868255251,-274.370652,0.00024931,7]
[355015118,1740868255261,-460.996841,0.00024931,2]
[355015119,1740868255271,-376.988901,0.00024931,7]
[355015120,1740868255280,-274.370652,0.00024931,7]
[355015121,1740868255290,-500.0,0.00024931,2]
[355015122,1740868255300,-500.0,0.00024931,2]
[355015123,1740868255309,-2456.48,0.00024931,2]
[355015124,1740868255325,-500.0,0.00024931,2]
[355015125,1740868255334,-500.0,0.00024931,2]
[355015126,1740868255344,-629.27,0.00024931,2]
[355015127,1740868255355,-500.0,0.00024931,2]
[355015128,1740868255364,-500.0,0.00024931,2]
[355015129,1740868255374,-500.0,0.00024931,2]
[355015130,1740868255384,-500.0,0.00024931,2]
[355015131,1740868255394,-500.0,0.00024931,2]
[355015132,1740868255405,-500.0,0.00024931,2]
[355015133,1740868255414,-593.65,0.00024931,2]
[355015134,1740868255424,-313.07920656,0.00024931,2]
[355015135,1740868255433,-500.0,0.00024931,2]
[355015136,1740868255443,-500.0,0.00024931,2]
[355015137,1740868255452,-500.0,0.00024931,2]
[355015138,1740868255461,-2283.22,0.00024931,2]
[355015139,1740868255471,-500.0,0.00024931,2]
[355015140,1740868255480,-501.60491329,0.00024931,2]
[355015141,1740868255490,-500.0,0.00024931,2]
[355015142,1740868255499,-12005.03,0.00024931,2]
[355015143,1740868255508,-500.0,0.00024931,2]
[355015144,1740868255518,-500.0,0.00024931,2]
[355015145,1740868255527,-827.85,0.00024931,2]
[355015146,1740868255536,-612.95,0.00024931,2]
[355015147,1740868255546,-325.02174419,0.00024931,2]
[355015148,1740868255555,-500.0,0.00024931,2]
[355015149,1740868255564,-1913.064729,0.00024931,7]
[355015150,1740868255573,-500.0,0.00024931,2]
[355015151,1740868255583,-1806.46,0.00024931,2]
[355015152,1740868255592,-500.0,0.00024931,2]
[355015153,1740868255602,-500.0,0.00024931,2]
[355015154,1740868255611,-5793.94,0.00024931,2]
[355015155,1740868255621,-500.0,0.00024931,2]
[355015156,1740868255630,-1365.34,0.00024931,2]
[355015157,1740868255639,-1913.064729,0.00024931,7]
[355015158,1740868255650,-503.66122976,0.00024931,2]
[355015159,1740868255660,-500.0,0.00024931,2]
[355015160,1740868255669,-160.0,0.00024931,7]
[355015161,1740868255678,-733.47387,0.00024931,7]
[355015162,1740868255688,-500.0,0.00024931,2]
[355015163,1740868255697,-500.0,0.00024931,2]
[355015164,1740868255707,-224980.74,0.00024931,2]
[355015165,1740868255716,-500.0,0.00024931,2]
[355015166,1740868255725,-500.0,0.00024931,2]
[355015167,1740868255734,-151.0,0.00024931,7]
[355015168,1740868255744,-733.47387,0.00024931,7]
[355015169,1740868255754,-500.0,0.00024931,2]
[355015170,1740868255763,-3181.57,0.00024931,2]
[355015171,1740868255773,-500.0,0.00024931,2]
[355015172,1740868255782,-500.0,0.00024931,2]
[355015173,1740868255791,-500.0,0.00024931,2]
[355015174,1740868255800,-2401.08,0.00024931,2]
[355015175,1740868255809,-500.0,0.00024931,2]
[355015176,1740868255819,-151.0,0.00024931,7]
[355015177,1740868255828,-500.0,0.00024931,2]
[355015178,1740868255839,-500.0,0.00024931,2]
[355015179,1740868255849,-500.0,0.00024931,2]
[355015180,1740868255858,-500.0,0.00024931,2]
[355015181,1740868255868,-962.35,0.00024931,2]
[355015182,1740868255878,-151.0,0.00024931,7]
[355015183,1740868255888,-18268.34,0.00024931,2]
[355015184,1740868255899,-500.0,0.00024931,2]
[355015185,1740868255909,-500.0,0.00024931,2]
[355015186,1740868255919,-500.0,0.00024931,2]
[355015187,1740868255929,-551.87205177,0.00024931,2]
[355015188,1740868255939,-500.0,0.00024931,2]
[355015189,1740868255950,-500.0,0.00024931,2]
[355015190,1740868255960,-500.0,0.00024931,2]
[355015191,1740868255970,-500.0,0.00024931,2]
[355015192,1740868255979,-4565.88,0.00024931,2]
[355015193,1740868255989,-500.0,0.00024931,2]
[355015194,1740868256000,-500.0,0.00024931,2]
[355015195,1740868256010,-689.48,0.00024931,2]
[355015196,1740868256019,-500.0,0.00024931,2]
[355015197,1740868256029,-500.0,0.00024931,2]
[355015198,1740868256039,-500.0,0.00024931,2]
[355015199,1740868256049,-500.0,0.00024931,2]
[355015200,1740868256059,-1760.17,0.00024931,2]
[355015201,1740868256069,-645.9,0.00024931,2]
[355015202,1740868256079,-13080.69,0.00024931,2]
[355015203,1740868256090,-500.0,0.00024931,2]
[355015204,1740868256100,-151.0,0.00024931,7]
[355015205,1740868256111,-742.22,0.00024931,2]
[355015206,1740868256121,-500.0,0.00024931,2]
[355015207,1740868256131,-500.0,0.00024931,2]
[355015208,1740868256141,-500.0,0.00024931,2]
[355015209,1740868256151,-500.0,0.00024931,2]
[355015210,1740868256161,-151.0,0.00024931,7]
[355015211,1740868256172,-2596.58,0.00024931,2]
[355015212,1740868256182,-500.0,0.00024931,2]
[355015213,1740868256192,-346.17023805,0.00024931,2]
[355015214,1740868256202,-494.63397292,0.00024931,2]
[355015215,1740868256212,-500.0,0.00024931,2]
[355015216,1740868256222,-500.0,0.00024931,2]
[355015217,1740868256232,-500.0,0.00024931,2]
[355015218,1740868256242,-9275.76,0.00024931,2]
[355015219,1740868256253,-500.0,0.00024931,2]
[355015220,1740868256263,-1869.18,0.00024931,2]
[355015221,1740868256273,-151.0,0.00024931,7]
[355015222,1740868256283,-500.0,0.00024931,2]
[355015223,1740868256294,-715.08,0.00024931,2]
[355015224,1740868256304,-151.0,0.00024931,7]
[355015225,1740868256315,-1682.49,0.00024931,2]
[355015226,1740868256327,-1278.94,0.00024931,2]
[355015227,1740868256337,-500.0,0.00024931,2]
[355015228,1740868256347,-151.0,0.00024931,7]
[355015229,1740868256358,-962.06,0.00024931,2]
[355015230,1740868256368,-151.0,0.00024931,7]
[355015231,1740868256378,-500.0,0.00024931,2]
[355015232,1740868256388,-1385.85,0.00024931,2]
[355015233,1740868256400,-500.0,0.00024931,2]
[355015234,1740868256410,-500.0,0.00024931,2]
[355015235,1740868256420,-5957.81,0.00024931,2]
[355015236,1740868256430,-500.0,0.00024931,2]
[355015237,1740868256440,-500.0,0.00024931,2]
[355015238,1740868256450,-1057.1,0.00024931,2]
[355015239,1740868256460,-3831.47,0.00024931,2]
[355015240,1740868256469,-1335.95,0.00024931,2]
[355015241,1740868256480,-1724.92,0.00024931,2]
[355015242,1740868256489,-500.0,0.00024931,2]
[355015243,1740868256500,-500.0,0.00024931,2]
[355015244,1740868256510,-8322.48,0.00024931,2]
[355015245,1740868256520,-500.0,0.00024931,2]
[355015246,1740868256530,-500.0,0.00024931,2]
[355015247,1740868256540,-567.59,0.00024931,2]
[355015248,1740868256550,-500.0,0.00024931,2]
[355015249,1740868256560,-500.0,0.00024931,2]
[355015250,1740868256572,-500.0,0.00024931,2]
[355015251,1740868256583,-1581.19,0.00024931,2]
[355015252,1740868256593,-926.73,0.00024931,2]
[355015253,1740868256603,-1352.3,0.00024931,5]
[355015254,1740868256613,-40928.22,0.00024931,2]
[355015255,1740868256623,-500.0,0.00024931,2]
[355015256,1740868256633,-151.0,0.00024931,7]
[355015257,1740868256644,-152.943537,0.00024931,7]
[355015258,1740868256656,-945.69,0.00024931,2]
[355015259,1740868256665,-500.0,0.00024931,2]
[355015260,1740868256675,-1660.59,0.00024931,2]
[355015261,1740868256686,-504.43,0.00024931,2]
[355015262,1740868256696,-500.0,0.00024931,2]
[355015263,1740868256707,-500.0,0.00024931,2]
[355015264,1740868256717,-1796.58,0.00024931,2]
[355015265,1740868256727,-1847.7,0.00024931,2]
[355015266,1740868256737,-500.0,0.00024931,2]
[355015267,1740868256747,-500.0,0.00024931,2]
[355015268,1740868256758,-500.0,0.00024931,2]
[355015269,1740868256771,-500.0,0.00024931,2]
[355015270,1740868256781,-674.36,0.00024931,2]
[355015271,1740868256791,-500.0,0.00024931,2]
[355015272,1740868256801,-500.0,0.00024931,2]
[355015273,1740868256811,-500.0,0.00024931,2]
[355015274,1740868256821,-271.111896,0.00024931,7]
[355015275,1740868256831,-271.111896,0.00024931,7]
[355015276,1740868256841,-500.0,0.00024931,2]
[355015277,1740868256852,-505.30669483,0.00024931,2]
[355015278,1740868256862,-2784.2,0.00024931,2]
[355015279,1740868256873,-500.0,0.00024931,2]
[355015280,1740868256883,-500.0,0.00024931,2]
[355015281,1740868256893,-271.111896,0.00024931,7]
[355015282,1740868256903,-539.70988336,0.00024931,2]
[355015283,1740868256912,-1030.020155,0.00024931,7]
[355015284,1740868256923,-500.0,0.00024931,2]
[355015285,1740868256932,-271.111896,0.00024931,7]
[355015286,1740868256943,-1030.020155,0.00024931,7]
[355015287,1740868256953,-500.0,0.00024931,2]
[355015288,1740868256963,-500.0,0.00024931,2]
[355015289,1740868256972,-500.0,0.00024931,2]
[355015290,1740868256982,-500.0,0.00024931,2]
[355015291,1740868256992,-500.0,0.00024931,2]
[355015292,1740868257002,-500.0,0.00024931,2]
[355015293,1740868257012,-1496.49,0.00024931,2]
[355015294,1740868257023,-1030.020155,0.00024931,7]
[355015295,1740868257033,-3669.4,0.00024931,2]
[355015296,1740868257043,-1030.020155,0.00024931,7]
[355015297,1740868257052,-1169.33,0.00024931,2]
[355015298,1740868257062,-500.0,0.00024931,2]
[355015299,1740868257072,-500.0,0.00024931,2]
[355015300,1740868257082,-500.0,0.00024931,2]
[355015301,1740868257092,-1208.2,0.00024931,2]
[355015302,1740868257103,-502.95938668,0.00024931,2]
[355015303,1740868257112,-470.39141204,0.00024931,2]
[355015304,1740868257123,-669.73,0.00024931,2]
[355015305,1740868257132,-520.35,0.00024931,2]
[355015306,1740868257143,-439.010419,0.00024931,2]
[355015307,1740868257154,-500.0,0.00024931,2]
[355015308,1740868257164,-6842.32,0.00024931,2]
[355015309,1740868257174,-500.0,0.00024931,2]
[355015310,1740868257184,-500.0,0.00024931,2]
[355015311,1740868257193,-500.0,0.00024931,2]
[355015312,1740868257204,-1024.37,0.00024931,2]
[355015313,1740868257214,-506.5828926,0.00024931,2]
[355015314,1740868257224,-500.0,0.00024931,2]
[355015315,1740868257234,-151.0,0.00024931,7]
[355015316,1740868257244,-247.390395,0.00024931,7]
[355015317,1740868257254,-519.4773465,0.00024931,2]
[355015318,1740868257264,-500.0,0.00024931,2]
[355015319,1740868257274,-500.0,0.00024931,2]
[355015320,1740868257284,-500.0,0.00024931,2]
[355015321,1740868257294,-987.85,0.00024931,2]
[355015322,1740868257305,-12132.98,0.00024931,2]
[355015323,1740868257315,-1041.48,0.00024931,2]
[355015324,1740868257328,-621.48,0.00024931,2]
[355015325,1740868257338,-500.0,0.00024931,2]
[355015326,1740868257348,-419.452387,0.00024931,7]
[355015327,1740868257359,-615.02,0.00024931,2]
[355015328,1740868257369,-500.0,0.00024931,2]
[355015329,1740868257379,-500.0,0.00024931,2]
[355015330,1740868257389,-500.0,0.00024931,2]
[355015331,1740868257401,-500.0,0.00024931,2]
[355015332,1740868257411,-500.0,0.00024931,2]
[355015333,1740868257421,-1362.53,0.00024931,2]
[355015334,1740868257431,-419.452387,0.00024931,7]
[355015335,1740868257441,-443.268657,0.00024931,7]
[355015336,1740868257451,-443.268657,0.00024931,7]
[355015337,1740868257461,-503.47191045,0.00024931,2]
[355015338,1740868257474,-19624.61182001,0.00024931,7]
[355015339,1740868257486,-447.37599512,0.00024931,2]
[355015340,1740868257497,-500.0,0.00024931,2]
[355015341,1740868257506,-500.0,0.00024931,2]
[355015342,1740868257516,-443.268657,0.00024931,7]
[355015343,1740868257526,-443.268657,0.00024931,7]
[355015344,1740868257536,-18802.89,0.00024931,2]
[355015345,1740868257546,-500.0,0.00024931,2]
[355015346,1740868257556,-500.0,0.00024931,2]
[355015347,1740868257567,-500.0,0.00024931,2]
[355015348,1740868257577,-500.0,0.00024931,2]
[355015349,1740868257587,-6714.15,0.00024931,2]
[355015350,1740868257597,-151.0,0.00024931,7]
[355015351,1740868257607,-500.0,0.00024931,2]
[355015352,1740868257616,-151.0,0.00024931,7]
[355015353,1740868257627,-754.03,0.00024931,2]
[355015354,1740868257638,-500.0,0.00024931,2]
[355015355,1740868257648,-500.0,0.00024931,2]
[355015356,1740868257658,-502.9266679,0.00024931,2]
[355015357,1740868257668,-500.0,0.00024931,2]
[355015358,1740868257678,-500.0,0.00024931,2]
[355015359,1740868257688,-3958.23,0.00024931,2]
[355015360,1740868257698,-567.27,0.00024931,2]
[355015361,1740868257708,-500.0,0.00024931,2]
[355015362,1740868257717,-500.0,0.00024931,2]
[355015363,1740868257727,-500.0,0.00024931,2]
[355015364,1740868257737,-500.0,0.00024931,2]
[355015365,1740868257747,-500.0,0.00024931,2]
[355015366,1740868257756,-500.0,0.00024931,2]
[355015367,1740868257768,-500.0,0.00024931,2]
[355015368,1740868257778,-1500.92,0.00024931,2]
[355015369,1740868257788,-1964.8,0.00024931,2]
[355015370,1740868257798,-1001.5,0.00024931,2]
[355015371,1740868257808,-220.113875,0.00024931,7]
[355015372,1740868257818,-220.113875,0.00024931,7]
[355015373,1740868257828,-500.0,0.00024931,2]
[355015374,1740868257838,-508.8,0.00024931,2]
[355015375,1740868257848,-500.0,0.00024931,2]
[355015376,1740868257858,-2391.64,0.00024931,2]
[355015377,1740868257867,-500.0,0.00024931,2]
[355015378,1740868257878,-154.68668348,0.00024932,2]
[355015379,1740868257889,-500.0,0.00024973,2]
[355015380,1740868257898,-173.1565406,0.00024986,2]
[355015381,1740868257909,-6666.66,0.00025,2]
[355015382,1740868257919,-6666.66666667,0.00025,2]
[355015383,1740868257929,-1217.0,0.00025,2]
[355015384,1740868257940,-6666.66666667,0.00025,2]
[355015385,1740868257950,-737.28718,0.00025,2]
[355015386,1740868257960,-733.47387,0.00025,7]
[355015387,1740868257970,-151.0,0.00025,7]
[355015388,1740868257980,-733.47387,0.00025,7]
[355015389,1740868257990,-151.0,0.00025,7]
[355015390,1740868258000,-151.0,0.00025,7]
[355015391,1740868258010,-151.0,0.00025,7]
[355015392,1740868258021,-158.079616,0.00025,7]
[355015393,1740868258242,-151.0,0.00025,7]
[355015394,1740868258254,-2581.94705709,0.00025,2]
[355015395,1740868258264,-10364.0,0.00025,2]
[355015396,1740868258274,-151.0,0.00025,7]
[355015397,1740868258284,-419.452387,0.00025,7]
[355015398,1740868258295,-419.452387,0.00025,7]
[355015399,1740868258304,-500.0,0.000251,2]
[355015400,1740868258314,-3252.78396675,0.000251,2]
[355015401,1740868258326,-72183.69297382,0.00025105,2]
[355015402,1740868258335,-1913.064729,0.00025105,7]
[355015403,1740868258345,-1913.064729,0.00025105,7]
[355015404,1740868258355,-2112.44649355,0.00025111,2]
[355015405,1740868258366,-420.0,0.00025147,2]
[355015406,1740868258376,-500.0,0.000252,2]
[355015407,1740868258386,-500.0,0.00025205,2]
[355015408,1740868258398,-500.0,0.00025205,2]
[355015409,1740868258408,-500.0,0.00025205,2]
[355015410,1740868258419,-500.0,0.00025205,2]
[355015411,1740868258429,-500.0,0.00025205,2]
[355015412,1740868258439,-500.0,0.00025205,2]
[355015413,1740868258448,-509.00241629,0.00025205,2]
[355015414,1740868258459,-674.3,0.00025205,2]
[355015415,1740868258471,-500.0,0.00025205,2]
[355015416,1740868258481,-500.0,0.00025205,2]
[355015417,1740868258492,-528.88,0.00025205,2]
[355015418,1740868258502,-500.0,0.00025205,2]
[355015419,1740868258511,-604.09,0.00025205,2]
[355015420,1740868258522,-500.0,0.00025205,2]
[355015421,1740868258532,-500.0,0.00025205,2]
[355015422,1740868258542,-500.0,0.00025205,2]
[355015423,1740868258552,-578.46,0.00025205,2]
[355015424,1740868258562,-500.0,0.00025205,2]
[355015425,1740868258573,-500.0,0.00025205,2]
[355015426,1740868258583,-501.93,0.00025205,2]
[355015427,1740868258593,-500.0,0.00025205,2]
[355015428,1740868258603,-500.0,0.00025205,2]
[355015429,1740868258613,-500.0,0.00025205,2]
[355015430,1740868258622,-500.0,0.00025205,2]
[355015431,1740868258632,-500.0,0.00025205,2]
[355015432,1740868258643,-990.31,0.00025205,2]
[355015433,1740868258652,-500.0,0.00025205,2]
[355015434,1740868258662,-500.0,0.00025205,2]
[355015435,1740868258672,-500.0,0.00025205,2]
[355015436,1740868258682,-373.60693392,0.00025205,2]
[355015437,1740868258691,-500.0,0.00025205,2]
[355015438,1740868258701,-802.49,0.00025205,2]
[355015439,1740868258710,-500.0,0.00025205,2]
[355015440,1740868258720,-628.18,0.00025205,2]
[355015441,1740868258731,-500.0,0.00025205,2]
[355015442,1740868258740,-500.0,0.00025205,2]
[355015443,1740868258750,-500.0,0.00025205,2]
[355015444,1740868258760,-500.0,0.00025205,2]
[355015445,1740868258769,-500.0,0.00025205,2]
[355015446,1740868258779,-500.0,0.00025205,2]
[355015447,1740868258788,-500.0,0.00025205,2]
[355015448,1740868258797,-445.24089908,0.00025205,2]
[355015449,1740868258807,-1027.8,0.00025205,2]
[355015450,1740868258816,-507.8,0.00025205,2]
[355015451,1740868258826,-500.0,0.00025205,2]
[355015452,1740868258836,-500.0,0.00025205,2]
[355015453,1740868258845,-213.781473,0.00025205,7]
[355015454,1740868258855,-213.781473,0.00025205,7]
[355015455,1740868258864,-1049.34,0.00025205,2]
[355015456,1740868258874,-500.0,0.00025205,2]
[355015457,1740868258884,-500.0,0.00025205,2]
[355015458,1740868258894,-249.66421629,0.00025205,2]
[355015459,1740868258904,-500.0,0.00025205,2]
[355015460,1740868258914,-268.19323666,0.00025205,2]
[355015461,1740868258924,-500.0,0.00025205,2]
[355015462,1740868258933,-500.0,0.00025205,2]
[355015463,1740868258943,-500.0,0.00025205,2]
[355015464,1740868258952,-200.0,0.00025205,2]
[355015465,1740868258962,-465.80094179,0.00025205,2]
[355015466,1740868258972,-828.18,0.00025205,2]
[355015467,1740868258981,-500.0,0.00025205,2]
[355015468,1740868258991,-500.0,0.00025205,2]
[355015469,1740868259001,-1644.378715,0.00025205,7]
[355015470,1740868259010,-500.0,0.00025205,2]
[355015471,1740868259020,-500.0,0.00025205,2]
[355015472,1740868259030,-500.0,0.00025205,2]
[355015473,1740868259040,-500.0,0.00025205,2]
[355015474,1740868259050,-151.0,0.00025205,7]
[355015475,1740868259060,-1310.54,0.00025205,2]
[355015476,1740868259070,-500.0,0.00025205,2]
[355015477,1740868259080,-500.0,0.00025205,2]
[355015478,1740868259091,-151.0,0.00025205,7]
[355015479,1740868259100,-500.0,0.00025205,2]
[355015480,1740868259110,-500.0,0.00025205,2]
[355015481,1740868259119,-151.0,0.00025205,7]
[355015482,1740868259129,-500.0,0.00025205,2]
[355015483,1740868259139,-848.77,0.00025205,2]
[355015484,1740868259149,-500.0,0.00025205,2]
[355015485,1740868259158,-500.0,0.00025205,2]
[355015486,1740868259168,-500.0,0.00025205,2]
[355015487,1740868259178,-500.0,0.00025205,2]
[355015488,1740868259188,-500.0,0.00025205,2]
[355015489,1740868259197,-213.69101172,0.00025205,2]
[355015490,1740868259207,-500.0,0.00025205,2]
[355015491,1740868259216,-500.0,0.00025205,2]
[355015492,1740868259226,-608.84,0.00025205,2]
[355015493,1740868259236,-500.0,0.00025205,2]
[355015494,1740868259245,-500.0,0.00025205,2]
[355015495,1740868259255,-154.87669,0.00025205,7]
[355015496,1740868259265,-500.0,0.00025205,2]
[355015497,1740868259275,-184.713929,0.00025205,7]
[355015498,1740868259284,-500.0,0.00025205,2]
[355015499,1740868259293,-184.713929,0.00025205,7]
[355015500,1740868259303,-500.0,0.00025205,2]
[355015501,1740868259312,-500.0,0.00025205,2]
[355015502,1740868259325,-746.29,0.00025205,2]
[355015503,1740868259334,-544.93,0.00025205,2]
[355015504,1740868259343,-500.0,0.00025205,2]
[355015505,1740868259353,-515.28015119,0.00025205,2]
[355015506,1740868259363,-1301.96,0.00025205,2]
[355015507,1740868259373,-500.0,0.00025205,2]
[355015508,1740868259382,-500.0,0.00025205,2]
[355015509,1740868259392,-500.0,0.00025205,2]
[355015510,1740868259403,-151.0,0.00025205,7]
[355015511,1740868259413,-500.0,0.00025205,2]
[355015512,1740868259423,-151.0,0.00025205,7]
[355015513,1740868259432,-500.0,0.00025205,2]
[355015514,1740868259442,-500.0,0.00025205,2]
[355015515,1740868259451,-500.0,0.00025205,2]
[355015516,1740868259461,-513.08525506,0.00025205,2]
[355015517,1740868259470,-500.0,0.00025205,2]
[355015518,1740868259480,-500.0,0.00025205,2]
[355015519,1740868259490,-500.99,0.00025205,2]
[355015520,1740868259500,-500.0,0.00025205,2]
[355015521,1740868259509,-266.4523777,0.00025205,2]
[355015522,1740868259519,-500.0,0.00025205,2]
[355015523,1740868259529,-715.15,0.00025205,2]
[355015524,1740868259539,-500.0,0.00025205,2]
[355015525,1740868259549,-500.0,0.00025205,2]
[355015526,1740868259559,-500.0,0.00025205,2]
[355015527,1740868259569,-500.0,0.00025205,2]
[355015528,1740868259578,-398.00399413,0.00025205,2]
[355015529,1740868259588,-1613.28,0.00025205,2]
[355015530,1740868259598,-500.0,0.00025205,2]
[355015531,1740868259607,-500.0,0.00025205,2]
[355015532,1740868259617,-454.30551841,0.00025205,2]
[355015533,1740868259627,-500.0,0.00025205,2]
[355015534,1740868259637,-151.0,0.00025205,7]
[355015535,1740868259646,-1073.52,0.00025205,2]
[355015536,1740868259656,-500.0,0.00025205,2]
[355015537,1740868259666,-500.0,0.00025205,2]
[355015538,1740868259676,-975.6,0.00025205,2]
[355015539,1740868259687,-500.0,0.00025205,2]
[355015540,1740868259697,-500.0,0.00025205,2]
[355015541,1740868259707,-1358.25,0.00025205,2]
[355015542,1740868259716,-500.0,0.00025205,2]
[355015543,1740868259726,-552.62,0.00025205,2]
[355015544,1740868259735,-500.0,0.00025205,2]
[355015545,1740868259744,-500.0,0.00025205,2]
[355015546,1740868259754,-500.0,0.00025205,2]
[355015547,1740868259763,-500.0,0.00025205,2]
[355015548,1740868259773,-780.2,0.00025205,2]
[355015549,1740868259783,-1483.54,0.00025205,2]
[355015550,1740868259792,-500.0,0.00025205,2]
[355015551,1740868259803,-529.38,0.00025205,2]
[355015552,1740868259812,-1775.35,0.00025205,2]
[355015553,1740868259822,-500.0,0.00025205,2]
[355015554,1740868259831,-500.0,0.00025205,2]
[355015555,1740868259840,-500.0,0.00025205,2]
[355015556,1740868259850,-613.41,0.00025205,2]
[355015557,1740868259859,-500.0,0.00025205,2]
[355015558,1740868259869,-500.0,0.00025205,2]
[355015559,1740868259879,-561.422399,0.00025205,7]
[355015560,1740868259889,-500.0,0.00025205,2]
[355015561,1740868259899,-500.0,0.00025205,2]
[355015562,1740868259909,-561.422399,0.00025205,7]
[355015563,1740868259919,-616.92,0.00025205,2]
[355015564,1740868259928,-500.0,0.00025205,2]
[355015565,1740868259938,-500.0,0.00025205,2]
[355015566,1740868259947,-500.0,0.00025205,2]
[355015567,1740868259956,-500.0,0.00025205,2]
[355015568,1740868259967,-500.0,0.00025205,2]
[355015569,1740868259976,-500.0,0.00025205,2]
[355015570,1740868259986,-306.26038059,0.00025205,2]
[355015571,1740868259995,-503.43214631,0.00025205,2]
[355015572,1740868260005,-500.0,0.00025205,2]
[355015573,1740868260015,-500.0,0.00025205,2]
[355015574,1740868260024,-500.0,0.00025205,2]
[355015575,1740868260034,-671.5,0.00025205,2]
[355015576,1740868260044,-151.0,0.00025205,7]
[355015577,1740868260056,-500.0,0.00025205,2]
[355015578,1740868260067,-500.0,0.00025205,2]
[355015579,1740868260077,-917.93,0.00025205,2]
[355015580,1740868260086,-500.0,0.00025205,2]
[355015581,1740868260096,-907.54,0.00025205,2]
[355015582,1740868260106,-500.0,0.00025205,2]
[355015583,1740868260116,-720.27,0.00025205,2]
[355015584,1740868260126,-500.0,0.00025205,2]
[355015585,1740868260135,-248.14206749,0.00025205,2]